[Event "Fagernes GM Open Autumn 2024"]
[Site "Fagernes"]
[Date "2024.10.09"]
[Round "5.5"]
[White "Kvaloy, Aksel Bu"]
[Black "Moksh Amit Doshi"]
[Result "1-0"]
[ECO "C84"]
[WhiteElo "2484"]
[BlackElo "2377"]
[Annotator "RC"]
[PlyCount "61"]
[EventDate "2024.10.03"]
[EventType "swiss"]
[EventCountry "NOR"]
[SourceTitle "playchess.com"]
[Source "ChessBase"]
[SourceQuality "1"]
[TimeControl "40/6000:2400+30"]

1. e4 {[%emt 0:01:00]} e5 {[%emt 0:00:41]} 2. Nf3 {[%emt 0:00:00]} Nc6 {[%emt 0:00:00]} 3. Bb5 {[%emt 0:00:00]} a6 {[%emt 0:00:00]} 4. Ba4 {[%emt 0:00:00]} Nf6 {[%emt 0:00:00]} 5. d4 {[%emt 0:00:00]} exd4 {[%emt 0:02:37]} 6. O-O {[%emt 0:00:00]} Be7 {[%emt 0:00:26]} 7. e5 {[%emt 0:00:00]} Ne4 {[%emt 0:01:49]} 8. Nxd4 {[%emt 0:00:00]} O-O {[%emt 0:02:02]} 9. Nf5 {[%emt 0:00:00]} d5 {[%emt 0:03:44]} 10. Nxe7+ {[%emt 0:00:00]} Nxe7 {[%emt 0:00:07]} 11. c3 {[%emt 0:00:00]} Nc5 {[%emt 0:05:26]} 12. Bc2 {[%emt 0:00:00]} Bf5 {[%emt 0:00:00]} 13. Na3 {[%emt 0:00:00]} Qd7 {[%emt 0:08:56]} 14. Be3 {[%emt 0:00:00]} Bxc2 {[%emt 0:03:18]} 15. Nxc2 {[%emt 0:00:00]} Ne6 {[%emt 0:00:00]} 16. f4 {[%emt 0:03:42]} f5 {[%emt 0:02:36]} 17. exf6 {[%emt 0:00:03]} Rxf6 {[%emt 0:02:15]} 18. g4 {[%emt 0:00:00]} g6 {[%emt 0:03:19]} 19. Nd4 {[%emt 0:00:00]} Raf8 {[%emt 0:05:37]} 20. Nxe6 {[%emt 0:00:00]} Rxe6 {[%emt 0:01:18]} 21. Qf3 {[%emt 0:00:09]} Re4 {[%emt 0:04:24]} 22. Rae1 {[%emt 0:00:31]} Rf7 {[%emt 0:06:32]} 23. h3 {[%emt 0:11:53]} Nc6 {[%emt 0:04:00]} 24. Qg3 {[%emt 0:09:15]} Rfe7 {[%emt 0:05:27]} 25. f5 {[%emt 0:14:37]} gxf5 {[%emt 0:06:50]} 26. Rxf5 {[%emt 0:00:05]} d4 {[%emt 0:00:28]} 27. Qf3 {[%emt 0:03:03]} Qxf5 {[%emt 0:09:55]} 28. Qxf5 {[%emt 0:00:57]} Rxe3 {[%emt 0:00:54]} 29. Rf1 {[%emt 0:00:38]} Re8 {[%emt 0:00:00]} 30. Qg5+ {[%emt 0:00:03]} Kh8 {[%emt 0:00:00]} 31. Rf7 {[%emt 0:02:46]} 1-0

[Event "Fagernes GM Open Autumn 2024"]
[Site "Fagernes"]
[Date "2024.10.09"]
[Round "5.6"]
[White "Das, Sayantan"]
[Black "Oksendal, Martin"]
[Result "1-0"]
[ECO "C02"]
[WhiteElo "2471"]
[BlackElo "2271"]
[Annotator "TA"]
[PlyCount "51"]
[EventDate "2024.10.03"]
[EventType "swiss"]
[EventCountry "NOR"]
[SourceTitle "playchess.com"]
[Source "ChessBase"]
[SourceQuality "1"]
[TimeControl "40/6000:2400+30"]

{[%evp 14,51,0,0,0,-36,-29,-18,-18,-48,-30,-68,-35,-56,-43,-79,-21,-78,0,-32,0,0,0,0,0,0,114,15,110,112,114,116,463,471,601,598,601,607,29989,29990]} 1. e4 {[%emt 0:00:41]} e6 {[%emt 0:00:00]} 2. d4 {[%emt 0:00:00]} d5 {[%emt 0:00:00]} 3. e5 {[%emt 0:00:00]} c5 {[%emt 0:00:00]} 4. c3 {[%emt 0:00:00]} Nc6 {[%emt 0:00:00]} 5. Nf3 {[%emt 0:00:00]} Qb6 {[%emt 0:00:00]} 6. Be2 {[%emt 0:00:00]} cxd4 {[%emt 0:00:00]} 7. cxd4 {[%emt 0:00:00]} Nh6 {[%emt 0:00:00]} 8. Bxh6 {[%emt 0:00:23]} Qxb2 {[%emt 0:00:00]} 9. Nc3 {[%emt 0:00:00]} Qxc3+ {[%emt 0:09:49]} 10. Bd2 {[%emt 0:00:00]} Qa3 {[%emt 0:01:23] The position is equal.} 11. h4 {[%emt 0:02:12]} Bb4 {[%emt 0:04:25]} 12. Kf1 {[%emt 0:03:17]} h6 {[%emt 0:19:20]} 13. Rh3 {[%emt 0:02:57]} Bxd2 {[%emt 0:09:55]} 14. Qxd2 {[%emt 0:08:07]} Qb4 {[%emt 0:01:31]} ({Black should try} 14... Qa5 $17 {Strongly threatening ...Qxd2.} 15. Qf4 Ne7) 15. Qd3 {[%emt 0:19:16] [#]} (15. Qf4 $11) 15... Qc4 {[%emt 0:09:22]} 16. Qe3 {[%emt 0:10:48]} (16. Qa3 $5 Qb4 $8 17. Qd3 $11) 16... Qb4 {[%emt 0:00:59]} 17. Rg3 {[%emt 0:00:51]} g6 {[%emt 0:04:07]} 18. Bd3 {[%emt 0:04:03]} Bd7 {[%emt 0:07:24]} 19. Rb1 {[%emt 0:05:24]} Qc3 {[%emt 0:06:57]} (19... Qa4 $11 {keeps the balance.}) 20. Kg1 {[%emt 0:08:24]} (20. Rxb7 $6 Rb8 21. Rxb8+ Nxb8 $11) (20. Rxg6 $1 $16 {Rf6 is the strong threat.} O-O-O 21. Rf6 (21. Rxh6 Rxh6 22. Rb3 Qa1+ 23. Rb1 Qc3 $11)) 20... Na5 {[%emt 0:03:18] [#]} (20... Ne7 $11) 21. Nh2 $1 $16 {[%emt 0:08:03] Ng4 would now be deadly.} Nc6 {[%emt 0:03:44]} 22. Ng4 {[%emt 0:03:59]} (22. Rxb7 Qa1+ 23. Bf1 h5 $18 (23... Qxd4 $2 24. Ng4 $18)) 22... O-O-O {[%emt 0:02:13][%mdl 8192] [#] Loses the game.} (22... Qxd4 $16 {is more resistant.} 23. Nf6+ (23. Rxb7 Bc8 $18) 23... Ke7) 23. Rxb7 $3 $18 {[%emt 0:01:07][%mdl 512]} Qxd4 {[%emt 0:01:56]} (23... Kxb7 24. Ba6+ (24. Nxh6 $2 Qa1+ 25. Kh2 Qxd4 $19) 24... Kxa6 25. Qxc3) (23... Nb4 24. Ba6) 24. Ba6 {[%emt 0:00:28]} Qxe3 {[%emt 0:01:57]} 25. Rxe3 {[%emt 0:00:23][%cal Oe3b3] Threatening mate with Reb3!} ({Less strong is} 25. Nxe3 Nb8 $18) ({And not} 25. Rxa7+ Kb8 26. Rb7+ (26. Nxe3 $2 {perishes.} Kxa7 27. Bf1 h5 $19) 26... Ka8 27. fxe3 (27. Nxe3 $2 Nb8 $19) 27... Nb8 $17) 25... d4 {[%emt 0:00:10] Threatens to win with ...Nb8.} 26. Reb3 {[%emt 0:00:00] Weighted Error Value: White=0.21 (precise) /Black=0.87.  Loses game:     	---       	Black=1      Mistake:       	White=2     	Black=4      Inaccurate:     	White=5     	Black=3      OK:         	White=2     	Black=3      Best:        	White=2     	---        Strong:       	White=1     	---        Brilliant:      	White=1     	---} 1-0

[Event "Fagernes GM Open Autumn 2024"]
[Site "Fagernes"]
[Date "2024.10.09"]
[Round "5.7"]
[White "Sasikiran, Krishnan"]
[Black "Bhagat Kush"]
[Result "1/2-1/2"]
[ECO "E66"]
[WhiteElo "2571"]
[BlackElo "2245"]
[Annotator "RC"]
[PlyCount "133"]
[EventDate "2024.10.03"]
[EventType "swiss"]
[EventCountry "NOR"]
[SourceTitle "playchess.com"]
[Source "ChessBase"]
[SourceQuality "1"]
[TimeControl "40/6000:2400+30"]

1. d4 {[%emt 0:02:02]} Nf6 {[%emt 0:00:41]} 2. c4 {[%emt 0:00:00]} g6 {[%emt 0:00:00]} 3. g3 {[%emt 0:00:00]} Bg7 {[%emt 0:00:00]} 4. Bg2 {[%emt 0:00:00]} O-O {[%emt 0:00:00]} 5. Nc3 {[%emt 0:00:00]} d6 {[%emt 0:00:00]} 6. Nf3 {[%emt 0:00:00]} Nc6 {[%emt 0:00:00]} 7. d5 {[%emt 0:00:00]} Na5 {[%emt 0:08:11]} 8. b3 {[%emt 0:00:00]} c5 {[%emt 0:00:43]} 9. Bb2 {[%emt 0:02:08]} a6 {[%emt 0:04:17]} 10. O-O {[%emt 0:01:33]} Bd7 {[%emt 0:10:22]} 11. Nd2 {[%emt 0:08:56]} b5 {[%emt 0:06:10]} 12. Qc2 {[%emt 0:02:33]} Rb8 {[%emt 0:00:13]} 13. Rab1 {[%emt 0:02:43]} Qc7 {[%emt 0:06:36]} 14. Nd1 {[%emt 0:15:08]} bxc4 {[%emt 0:09:18]} 15. bxc4 {[%emt 0:01:50]} h5 {[%emt 0:06:57]} 16. Ne3 {[%emt 0:11:58]} h4 {[%emt 0:15:37]} 17. Bc3 {[%emt 0:06:19]} h3 {[%emt 0:06:52]} 18. Bh1 {[%emt 0:07:52]} Nh5 {[%emt 0:05:45]} 19. Bf3 {[%emt 0:07:46]} Bxc3 {[%emt 0:04:25]} 20. Qxc3 {[%emt 0:00:47]} Ng7 {[%emt 0:00:28]} 21. Be4 {[%emt 0:04:43]} Rb7 {[%emt 0:06:32]} 22. f4 {[%emt 0:03:56]} f5 {[%emt 0:00:18]} 23. Bd3 {[%emt 0:02:37]} Rfb8 {[%emt 0:00:00]} 24. g4 {[%emt 0:04:35]} Rxb1 {[%emt 0:00:00]} 25. Rxb1 {[%emt 0:03:47]} Rxb1+ {[%emt 0:00:00]} 26. Bxb1 {[%emt 0:00:00]} Qb6 {[%emt 0:00:24]} 27. a3 {[%emt 0:00:00]} Nb7 {[%emt 0:00:08]} 28. Bc2 {[%emt 0:02:07]} Qa5 {[%emt 0:00:19]} 29. Qxa5 {[%emt 0:00:59]} Nxa5 {[%emt 0:00:00]} 30. Kf2 {[%emt 0:00:53]} e5 {[%emt 0:03:48]} 31. dxe6 {[%emt 0:01:26]} Bxe6 {[%emt 0:00:00]} 32. Kg3 {[%emt 0:02:23]} Kf7 {[%emt 0:00:00]} 33. gxf5 {[%emt 0:00:26]} gxf5 {[%emt 0:00:00]} 34. Kh4 {[%emt 0:00:00]} Nc6 {[%emt 0:00:00]} 35. Nf3 {[%emt 0:00:00]} Kf6 {[%emt 0:00:00]} 36. Bd3 {[%emt 0:00:00]} Ne7 {[%emt 0:00:00]} 37. Kxh3 {[%emt 0:00:00]} Nh5 {[%emt 0:00:00]} 38. Ng2 {[%emt 0:00:00]} d5 {[%emt 0:00:01]} 39. Ne5 {[%emt 0:00:00]} dxc4 {[%emt 0:00:57]} 40. Bxc4 {[%emt 0:00:00]} Bxc4 {[%emt 0:00:25]} 41. Nxc4 {[%emt 0:40:37]} Ng6 {[%emt 0:02:48]} 42. e4 {[%emt 0:00:00]} Ngxf4+ {[%emt 0:08:10]} 43. Nxf4 {[%emt 0:00:00]} Nxf4+ {[%emt 0:00:04]} 44. Kg3 {[%emt 0:00:00]} Ng6 {[%emt 0:04:33]} 45. exf5 {[%emt 0:00:00]} Kxf5 {[%emt 0:00:26]} 46. Kf3 {[%emt 0:00:00]} Nh4+ {[%emt 0:09:07]} 47. Ke3 {[%emt 0:00:00]} Ng2+ {[%emt 0:00:59]} 48. Kd3 {[%emt 0:00:00]} Nf4+ {[%emt 0:00:47]} 49. Kc3 {[%emt 0:00:00]} Ne2+ {[%emt 0:00:21]} 50. Kd2 {[%emt 0:00:00]} Nd4 {[%emt 0:01:02]} 51. Kd3 {[%emt 0:00:00]} Nf3 {[%emt 0:08:50]} 52. h3 {[%emt 0:00:00]} Kf4 {[%emt 0:01:54]} 53. Na5 {[%emt 0:00:00]} Ne5+ {[%emt 0:00:36]} 54. Kc3 {[%emt 0:00:00]} Kg3 {[%emt 0:03:00]} 55. Nb7 {[%emt 0:00:00]} Kxh3 {[%emt 0:00:37]} 56. Nxc5 {[%emt 0:00:00]} Kg4 {[%emt 0:00:10]} 57. Kd4 {[%emt 0:02:26]} Kf5 {[%emt 0:00:15]} 58. Kd5 {[%emt 0:00:41]} a5 {[%emt 0:01:07]} 59. a4 {[%emt 0:01:07]} Kf6 {[%emt 0:00:41]} 60. Ne4+ {[%emt 0:01:51]} Kf5 {[%emt 0:00:11]} 61. Nd6+ {[%emt 0:00:32]} Kf6 {[%emt 0:01:34]} 62. Kd4 {[%emt 0:00:08]} Ke6 {[%emt 0:00:11]} 63. Nb7 {[%emt 0:00:03]} Nd7 {[%emt 0:00:46]} 64. Nxa5 {[%emt 0:00:21]} Nb6 {[%emt 0:00:30]} 65. Nb7 Nxa4 {[%emt 0:00:00]} 66. Nc5+ {[%emt 0:00:05]} Kd6 {[%emt 0:00:00]} 67. Nxa4 {[%emt 0:00:04]} 1/2-1/2

[Event "Fagernes GM Open Autumn 2024"]
[Site "Fagernes"]
[Date "2024.10.09"]
[Round "5.8"]
[White "Krivenko, Dion"]
[Black "Urkedal, Frode Olav Olsen"]
[Result "1/2-1/2"]
[ECO "D00"]
[WhiteElo "2244"]
[BlackElo "2559"]
[Annotator "TA"]
[PlyCount "70"]
[EventDate "2024.10.03"]
[EventType "swiss"]
[EventCountry "NOR"]
[SourceTitle "playchess.com"]
[Source "ChessBase"]
[SourceQuality "1"]
[TimeControl "40/6000:2400+30"]

{[%evp 9,70,0,-10,-12,-9,-17,6,-14,-16,-14,55,5,29,24,26,33,38,26,36,0,0,-39,-44,-39,-47,-47,-43,-45,-42,-50,-42,-41,-38,-36,-43,-55,27,19,28,21,34,14,32,-35,0,-102,-100,-94,-91,-103,-61,-53,0,0,27,28,30,17,23,0,0,0,0]} 1. Nc3 {[%emt 0:00:00]} d5 {[%emt 0:03:42]} 2. d4 {[%emt 0:00:00]} Nf6 {[%emt 0:00:00]} 3. Bf4 {[%emt 0:00:00]} e6 {[%emt 0:02:01]} 4. Nb5 {[%emt 0:00:00]} Na6 {[%emt 0:00:00]} 5. e3 {[%emt 0:00:00]} Be7 {[%emt 0:00:00]} 6. Nf3 {[%emt 0:00:00]} O-O {[%emt 0:00:00]} 7. Be2 {[%emt 0:00:00]} Ne4 {[%emt 0:03:42]} 8. O-O {[%emt 0:00:31]} g5 {[%emt 0:01:40]} 9. Bg3 {[%emt 0:03:44]} c5 {[%emt 0:01:14]} (9... c6 $11 10. Nc3 Nxg3 11. hxg3 b5) 10. c3 {[%emt 0:06:02]} (10. c4 $14) 10... Bd7 {[%emt 0:03:19]} 11. a4 {[%emt 0:02:08]} Nxg3 {[%emt 0:00:24]} 12. hxg3 {[%emt 0:05:17]} Nc7 {[%emt 0:00:00]} 13. Nxc7 {[%emt 0:10:19]} Qxc7 {[%emt 0:00:00]} 14. Ne5 {[%emt 0:00:11]} Be8 {[%emt 0:00:00]} 15. f4 {[%emt 0:08:00]} f6 {[%emt 0:00:00]} 16. Nd3 {[%emt 0:00:21]} c4 {[%emt 0:03:00]} 17. Nf2 {[%emt 0:00:35]} Kh8 {[%emt 0:03:10]} 18. b3 {[%emt 0:01:22]} cxb3 {[%emt 0:01:19]} 19. Qxb3 {[%emt 0:00:06]} gxf4 {[%emt 0:01:17]} 20. gxf4 {[%emt 0:00:47]} Rg8 {[%emt 0:00:44]} 21. Rfc1 {[%emt 0:05:47]} Bc6 {[%emt 0:04:36] And now ...Rg3 would win.} 22. Bf3 $1 {[%emt 0:01:36]} e5 {[%emt 0:13:54]} (22... Rg3 $15) 23. c4 $1 $11 {[%emt 0:04:04]} (23. Bxd5 $2 exf4 24. exf4 Qxf4 25. Bxc6 bxc6 $19) 23... dxc4 {[%emt 0:03:30]} 24. Qxc4 {[%emt 0:05:06]} exd4 {[%emt 0:12:52]} 25. Qxd4 {[%emt 0:01:46]} Rg7 {[%emt 0:02:55]} 26. Ng4 {[%emt 0:21:17]} (26. Kf1 $14) 26... Qa5 {[%emt 0:03:54]} 27. Rxc6 {[%emt 0:12:48]} (27. Bxc6 $11 {keeps the balance.} bxc6 28. Nxf6) 27... bxc6 $17 {[%emt 0:00:15]} 28. Rc1 {[%emt 0:00:43]} (28. Nxf6 $2 Bc5 29. Qd3 Rf8 $19) 28... Rd8 {[%emt 0:04:29]} 29. Qa1 {[%emt 0:00:00]} Rd6 {[%emt 0:04:38]} 30. Nh6 {[%emt 0:00:22][%cal Oa1b1]} Bf8 {[%emt 0:04:32]} ({Black should try} 30... Rd3 $15 31. Qa2 (31. Rxc6 $2 Rxe3 32. Kf1 Rg6 $19) 31... Rg6 (31... Rxe3 32. Nf7+ Rxf7 33. Qxf7 $17)) 31. Qa2 $11 {[%emt 0:02:06]} Rxg2+ {[%emt 0:09:12]} 32. Bxg2 {[%emt 0:01:35][%csl Gh6][%cal Ra2g8] [#]} Bxh6 {[%emt 0:00:00]} 33. Qf7 {[%emt 0:00:17]} (33. Rxc6 $2 {loses.} Qe1+ 34. Kh2 Qh4+ 35. Kg1 Rd1+ 36. Bf1 Rxf1+ 37. Kxf1 Qh1+ 38. Kf2 Qh2+ (38... Qxc6 $2 39. Qb3 $19) 39. Kf3 Qxa2 $19) (33. Bxc6 Qb6 34. Kf2 Rxc6 $19) 33... Qd8 {[%emt 0:00:00] Inhibits Qe8+. Black is weak on the light squares} 34. Rxc6 {[%emt 0:02:07]} Rxc6 {[%emt 0:01:21]} 35. Bxc6 {[%emt 0:00:00][%cal Oc6d5]} Qg8+ {[%emt 0:01:12] Weighted Error Value: White=0.15 (very precise) /Black=0.18 (very precise) .  Mistake:       	White=3     	Black=3      Inaccurate:     	White=2     	Black=3      OK:         	White=10    	Black=11     Best:        	---       	Black=1      Strong:       	White=2     	---} 1/2-1/2

[Event "Fagernes GM Open Autumn 2024"]
[Site "Fagernes"]
[Date "2024.10.09"]
[Round "5.9"]
[White "Harish, Neeraj"]
[Black "Bazakutsa, Svyatoslav"]
[Result "0-1"]
[ECO "B12"]
[WhiteElo "2024"]
[BlackElo "2483"]
[Annotator "TA"]
[PlyCount "62"]
[EventDate "2024.10.03"]
[EventType "swiss"]
[EventCountry "NOR"]
[SourceTitle "playchess.com"]
[Source "ChessBase"]
[SourceQuality "1"]
[TimeControl "40/6000:2400+30"]

{[%evp 9,61,0,13,15,0,8,19,23,35,25,18,12,24,2,29,-93,-101,-97,-101,-92,-95,-163,-151,-196,-168,-331,-334,-310,-304,-310,-318,-319,-330,-336,-238,-262,-263,-489,-468,-843,-835,-1012,-975,-1001,-979,-29991,-29992,-29994,-29995,-29995,-29996,-29998,-29999,-29999]} 1. e4 {[%emt 0:00:00]} c6 {[%emt 0:06:40]} 2. d4 {[%emt 0:00:00]} d5 {[%emt 0:00:00]} 3. e5 {[%emt 0:00:00]} c5 {[%emt 0:00:00]} 4. dxc5 {[%emt 0:00:00]} e6 {[%emt 0:00:00]} 5. c3 {[%emt 0:00:00]} Nd7 {[%emt 0:00:00]} 6. Nf3 {[%emt 0:00:00]} Bxc5 {[%emt 0:00:00]} 7. Nbd2 {[%emt 0:00:00][%cal Bb1d2,Bd2b3,Bb3d4][%mdl 32]} Qc7 {[%emt 0:00:00]} 8. Nb3 {[%emt 0:00:00] The position is equal.} Ne7 {[%emt 0:01:34]} 9. Bf4 {[%emt 0:00:42]} Ng6 {[%emt 0:05:58][%csl LRe5,LRf4]} 10. Bg3 {[%emt 0:00:00]} Be7 {[%emt 0:00:24][%cal Rd7e5]} 11. Nbd4 {[%emt 0:22:54]} a6 {[%emt 0:07:15][%cal Rd7e5]} 12. Qa4 {[%emt 0:08:51]} (12. h4 $11 {keeps the balance.}) 12... O-O $17 {[%emt 0:07:25][%cal Rd7e5] Black continues to play with concentration.} 13. O-O-O {[%emt 0:01:44]} b5 {[%emt 0:15:29]} 14. Qc2 {[%emt 0:04:45]} Ngxe5 {[%emt 0:18:54]} ({Much weaker is} 14... Ndxe5 15. h4 Bd6 16. h5 Nxf3 17. hxg6 Nxd4 18. gxf7+ Kxf7 19. Bxd6 Qxd6 20. cxd4 $15) 15. Re1 {[%emt 0:11:54]} (15. Nxe5 $17 Nxe5 16. Nf3) 15... Bd6 $19 {[%emt 0:01:23]} 16. Ng5 {[%emt 0:10:02] [#]} Nf6 {[%emt 0:03:38]} 17. Bxb5 $2 {[%emt 0:04:07]} (17. Kb1 {keeps fighting.}) 17... axb5 {[%emt 0:01:56]} 18. Nxb5 {[%emt 0:00:00]} Qc4 {[%emt 0:00:11]} 19. Nxd6 {[%emt 0:02:00]} Nd3+ {[%emt 0:00:00]} (19... Qxa2 $2 {too greedy.} 20. Bxe5 h6 21. Bxf6 hxg5 22. Be7 $18 (22. Bxg5 Qa7 $18)) 20. Kd2 {[%emt 0:00:00]} Nxe1 {[%emt 0:00:00]} 21. Rxe1 {[%emt 0:00:00]} Qg4 {[%emt 0:00:10]} 22. h4 {[%emt 0:02:08]} Rxa2 {[%emt 0:06:32]} 23. Be5 $2 {[%emt 0:08:33]} (23. Qb3 {might work better.} Ra8 24. Qc2) 23... Qxh4 {[%emt 0:00:20]} 24. f4 {[%emt 0:00:00]} (24. Nh3 $142) 24... Ba6 {[%emt 0:01:05] [#] ( -> ...Qf2+)} 25. c4 {[%emt 0:05:06]} Bxc4 {[%emt 0:00:58]} 26. Nxc4 {[%emt 0:00:00]} dxc4 {[%emt 0:00:00]} 27. Qb1 {[%emt 0:03:06]} Qf2+ {[%emt 0:01:40] Black mates.} 28. Kc3 {[%emt 0:00:00]} Nd5+ {[%emt 0:00:18]} 29. Kxc4 {[%emt 0:00:00]} Rc8+ {[%emt 0:00:00]} 30. Kb3 {[%emt 0:00:00]} Qb6+ {[%emt 0:00:00]} 31. Kxa2 {[%emt 0:00:00]} Ra8# {[%emt 0:00:00] Weighted Error Value: White=1.08/Black=0.11 (very precise) .  Mistake:       	White=5     	---        Inaccurate:     	---       	Black=1      OK:         	White=7     	Black=9      Best:        	White=1     	Black=3} 0-1

[Event "Fagernes GM Open Autumn 2024"]
[Site "Fagernes"]
[Date "2024.10.09"]
[Round "5.10"]
[White "Krishnan, Ritvik"]
[Black "Hansen, Torbjorn Ringdal"]
[Result "1/2-1/2"]
[ECO "E44"]
[WhiteElo "2206"]
[BlackElo "2415"]
[Annotator "RC"]
[PlyCount "62"]
[EventDate "2024.10.03"]
[EventType "swiss"]
[EventCountry "NOR"]
[SourceTitle "playchess.com"]
[Source "ChessBase"]
[SourceQuality "1"]
[TimeControl "40/6000:2400+30"]

1. d4 {[%emt 0:00:00]} Nf6 {[%emt 0:00:00]} 2. c4 {[%emt 0:00:00]} e6 {[%emt 0:00:00]} 3. Nc3 {[%emt 0:00:00]} Bb4 {[%emt 0:00:00]} 4. e3 {[%emt 0:00:00]} b6 {[%emt 0:00:00]} 5. Nge2 {[%emt 0:00:00]} Ne4 {[%emt 0:00:00]} 6. Bd2 {[%emt 0:00:00]} Nxd2 {[%emt 0:00:02]} 7. Qxd2 {[%emt 0:00:00]} d5 {[%emt 0:00:00]} 8. a3 {[%emt 0:00:00]} Be7 {[%emt 0:00:00]} 9. cxd5 {[%emt 0:00:00]} exd5 {[%emt 0:00:00]} 10. Nf4 {[%emt 0:00:00]} c6 {[%emt 0:00:00]} 11. Bd3 {[%emt 0:00:00]} O-O {[%emt 0:00:36]} 12. O-O {[%emt 0:02:07]} Nd7 {[%emt 0:04:58]} 13. b4 {[%emt 0:05:51]} a6 {[%emt 0:01:19]} 14. e4 {[%emt 0:02:48]} dxe4 {[%emt 0:02:47]} 15. Bxe4 {[%emt 0:00:00]} Bb7 {[%emt 0:00:16]} 16. Rac1 {[%emt 0:06:00]} Nf6 {[%emt 0:05:04]} 17. Bf3 {[%emt 0:00:04]} Qd6 {[%emt 0:11:26]} 18. g3 {[%emt 0:06:13]} Rfe8 {[%emt 0:01:24]} 19. Rfd1 {[%emt 0:01:16]} Bf8 {[%emt 0:02:42]} 20. Na4 {[%emt 0:12:36]} Nd5 {[%emt 0:06:03]} 21. Nxd5 {[%emt 0:03:48]} cxd5 {[%emt 0:00:00]} 22. Nc3 {[%emt 0:02:32]} Rac8 {[%emt 0:02:03]} 23. Ne2 {[%emt 0:00:39]} g6 {[%emt 0:01:24]} 24. Qf4 {[%emt 0:03:35]} a5 {[%emt 0:02:51]} 25. Qxd6 {[%emt 0:05:16]} Bxd6 {[%emt 0:00:00]} 26. Nc3 {[%emt 0:00:34]} axb4 {[%emt 0:01:14]} 27. axb4 {[%emt 0:00:00]} Bxb4 {[%emt 0:00:48]} 28. Nxd5 {[%emt 0:02:16]} Rxc1 {[%emt 0:04:34]} 29. Rxc1 {[%emt 0:00:00]} Bxd5 {[%emt 0:00:21]} 30. Bxd5 {[%emt 0:00:00]} Re1+ {[%emt 0:00:27]} 31. Rxe1 {[%emt 0:00:00]} Bxe1 {[%emt 0:00:00]} 1/2-1/2

[Event "Fagernes GM Open Autumn 2024"]
[Site "Fagernes"]
[Date "2024.10.09"]
[Round "5.11"]
[White "Sidhant, Mohapatra"]
[Black "Myagmarsuren, Evsuld"]
[Result "1/2-1/2"]
[ECO "D78"]
[WhiteElo "2369"]
[BlackElo "2171"]
[Annotator "RC"]
[PlyCount "47"]
[EventDate "2024.10.03"]
[EventType "swiss"]
[EventCountry "NOR"]
[SourceTitle "playchess.com"]
[Source "ChessBase"]
[SourceQuality "1"]
[TimeControl "40/6000:2400+30"]

1. Nf3 {[%emt 0:00:06]} Nf6 {[%emt 0:00:00]} 2. c4 {[%emt 0:00:41]} c6 {[%emt 0:00:00]} 3. g3 {[%emt 0:00:03]} g6 {[%emt 0:00:00]} 4. b3 {[%emt 0:00:00]} Bg7 {[%emt 0:00:00]} 5. Bb2 {[%emt 0:00:00]} O-O {[%emt 0:00:00]} 6. Bg2 {[%emt 0:00:00]} d5 {[%emt 0:00:00]} 7. O-O {[%emt 0:00:00]} Nbd7 {[%emt 0:06:11]} 8. d4 {[%emt 0:04:43]} b5 {[%emt 0:09:53]} 9. Qc2 {[%emt 0:07:11]} bxc4 {[%emt 0:01:55]} 10. bxc4 {[%emt 0:00:00]} Rb8 {[%emt 0:11:39]} 11. Nbd2 {[%emt 0:02:32]} Ne4 {[%emt 0:11:51]} 12. Rab1 {[%emt 0:05:39]} Nxd2 {[%emt 0:02:06]} 13. Nxd2 {[%emt 0:00:00]} Nf6 {[%emt 0:00:19]} 14. Ba3 {[%emt 0:03:31]} Rxb1 {[%emt 0:01:20]} 15. Nxb1 {[%emt 0:02:03]} Bf5 {[%emt 0:03:29]} 16. Qa4 {[%emt 0:00:05]} dxc4 {[%emt 0:01:16]} 17. Qxc4 {[%emt 0:01:34]} Be6 {[%emt 0:00:00]} 18. Qa4 {[%emt 0:00:25]} Bxa2 {[%emt 0:03:41]} 19. Qxa7 {[%emt 0:12:44]} Nd5 {[%emt 0:13:08]} 20. e4 {[%emt 0:08:39]} Nc7 {[%emt 0:00:28]} 21. Bc5 {[%emt 0:01:52]} Bxb1 {[%emt 0:02:00]} 22. Rxb1 {[%emt 0:00:00]} Nb5 {[%emt 0:00:00]} 23. Qb7 {[%emt 0:04:19]} Bxd4 {[%emt 0:03:58]} 24. Bxe7 {[%emt 0:00:00]} 1/2-1/2